[Event "Early-Titled-Tuesday-Blitz-March-26-2024"]
[Site "Chess.com"]
[Date "2024.03.26"]
[Round "4"]
[White "jakopogi"]
[Black "ChristopherYoo"]
[Result "1-0"]
[WhiteElo "2810"]
[BlackElo "2967"]
[TimeControl "180+1"]
[EndTime "8:37:59 PDT"]
[Termination "jakopogi won on time"]

1. e4 {[%clk 0:03:00.3]} 1... e5 {[%clk 0:02:55.7]} 2. Nf3 {[%clk 0:03:00.6]}
2... Nc6 {[%clk 0:02:55.2]} 3. Bb5 {[%clk 0:03:00.8]} 3... Nf6 {[%clk
0:02:52.9]} 4. O-O {[%clk 0:03:00.7]} 4... Nxe4 {[%clk 0:02:50.7]} 5. Re1 {[%clk
0:02:57.7]} 5... Nd6 {[%clk 0:02:50.4]} 6. Nxe5 {[%clk 0:02:58.3]} 6... Be7
{[%clk 0:02:49.6]} 7. Nxc6 {[%clk 0:02:56.3]} 7... dxc6 {[%clk 0:02:48.1]} 8.
Bf1 {[%clk 0:02:53.6]} 8... O-O {[%clk 0:02:47.5]} 9. d4 {[%clk 0:02:53.9]} 9...
Nf5 {[%clk 0:02:46.4]} 10. c3 {[%clk 0:02:53.2]} 10... c5 {[%clk 0:02:43.5]} 11.
d5 {[%clk 0:02:50.2]} 11... Nd6 {[%clk 0:02:35.2]} 12. Nd2 {[%clk 0:02:49.5]}
12... Bf6 {[%clk 0:02:31.9]} 13. Ne4 {[%clk 0:02:42.7]} 13... Bd7 {[%clk
0:02:30.7]} 14. Nxc5 {[%clk 0:02:40]} 14... Bf5 {[%clk 0:02:30.6]} 15. Bf4
{[%clk 0:02:33.4]} 15... Qc8 {[%clk 0:02:22.2]} 16. Be5 {[%clk 0:02:20.9]} 16...
Bxe5 {[%clk 0:02:20.6]} 17. Rxe5 {[%clk 0:02:20.9]} 17... Re8 {[%clk 0:02:19.1]}
18. Qe1 {[%clk 0:02:15.6]} 18... Rxe5 {[%clk 0:02:04.1]} 19. Qxe5 {[%clk
0:02:15.1]} 19... Qe8 {[%clk 0:02:02.6]} 20. Re1 {[%clk 0:02:12.8]} 20... Qxe5
{[%clk 0:01:59.7]} 21. Rxe5 {[%clk 0:02:13.7]} 21... Kf8 {[%clk 0:01:59.3]} 22.
f3 {[%clk 0:02:01]} 22... h5 {[%clk 0:01:45]} 23. Nxb7 {[%clk 0:01:31.8]} 23...
Nxb7 {[%clk 0:01:39.6]} 24. Rxf5 {[%clk 0:01:31.9]} 24... g6 {[%clk 0:01:40.1]}
25. Re5 {[%clk 0:01:32.4]} 25... a5 {[%clk 0:01:33.8]} 26. Re2 {[%clk
0:01:28.9]} 26... a4 {[%clk 0:01:31.7]} 27. Rd2 {[%clk 0:01:27.1]} 27... Nd6
{[%clk 0:01:30.8]} 28. Kf2 {[%clk 0:01:26.4]} 28... Ke7 {[%clk 0:01:29.7]} 29.
c4 {[%clk 0:01:20.2]} 29... Ra5 {[%clk 0:01:27.7]} 30. b4 {[%clk 0:01:18.7]}
30... axb3 {[%clk 0:01:28.6]} 31. axb3 {[%clk 0:01:19.6]} 31... Nb7 {[%clk
0:00:54.6]} 32. b4 {[%clk 0:01:09.2]} 32... Ra4 {[%clk 0:00:54.1]} 33. Rb2
{[%clk 0:01:09.1]} 33... Kd6 {[%clk 0:00:54.5]} 34. Ke3 {[%clk 0:01:09]} 34...
Ra1 {[%clk 0:00:29.5]} 35. Bd3 {[%clk 0:01:06.3]} 35... Ke5 {[%clk 0:00:14.3]}
36. f4+ {[%clk 0:01:05]} 36... Kf6 {[%clk 0:00:13.7]} 37. c5 {[%clk 0:01:02.1]}
37... Ra3 {[%clk 0:00:08.2]} 38. Kd4 {[%clk 0:01:01.9]} 38... Nd8 {[%clk
0:00:04.3]} 39. b5 {[%clk 0:00:59.6]} 39... Ra4+ {[%clk 0:00:04.2]} 40. Bc4
{[%clk 0:00:59.4]} 40... Nb7 {[%clk 0:00:04.5]} 41. Ra2 {[%clk 0:00:52.6]} 41...
Rb4 {[%clk 0:00:03.3]} 42. Ra7 {[%clk 0:00:52.6]} 42... Nd8 {[%clk 0:00:01.6]}
43. Rxc7 {[%clk 0:00:52.2]} 43... Rb2 {[%clk 0:00:01.7]} 44. Rd7 {[%clk
0:00:50.5]} 44... Rxg2 {[%clk 0:00:01.6]} 45. Rxd8 {[%clk 0:00:50.1]} 45... Rxh2
{[%clk 0:00:02.3]} 46. c6 {[%clk 0:00:50]} 46... Rb2 {[%clk 0:00:03.1]} 47. c7
{[%clk 0:00:50.4]} 1-0

[Event "Early-Titled-Tuesday-Blitz-March-26-2024"]
[Site "Chess.com"]
[Date "2024.03.26"]
[Round "4"]
[White "ogpin"]
[Black "Rud_Makarian"]
[Result "0-1"]
[WhiteElo "2273"]
[BlackElo "3082"]
[TimeControl "180+1"]
[EndTime "8:38:00 PDT"]
[Termination "Rud_Makarian won by resignation"]

1. e4 {[%clk 0:03:00.9]} 1... g6 {[%clk 0:03:00.9]} 2. d4 {[%clk 0:03:00.8]}
2... Bg7 {[%clk 0:03:01.8]} 3. Be3 {[%clk 0:02:59.9]} 3... c6 {[%clk 0:03:02.7]}
4. h4 {[%clk 0:02:59.5]} 4... d5 {[%clk 0:03:00.5]} 5. Nc3 {[%clk 0:02:59.5]}
5... dxe4 {[%clk 0:02:54.2]} 6. Nxe4 {[%clk 0:03:00.4]} 6... Nf6 {[%clk
0:02:53.5]} 7. Nxf6+ {[%clk 0:02:59.8]} 7... exf6 {[%clk 0:02:53.6]} 8. h5
{[%clk 0:02:59.7]} 8... O-O {[%clk 0:02:53.6]} 9. hxg6 {[%clk 0:02:52.5]} 9...
hxg6 {[%clk 0:02:54.5]} 10. Bc4 {[%clk 0:02:41.2]} 10... Re8 {[%clk 0:02:54.6]}
11. Qf3 {[%clk 0:02:34.5]} 11... Be6 {[%clk 0:02:45.3]} 12. Bxe6 {[%clk
0:02:28]} 12... Rxe6 {[%clk 0:02:46.2]} 13. O-O-O {[%clk 0:02:28]} 13... Qd5
{[%clk 0:02:46.2]} 14. Qxd5 {[%clk 0:02:21.4]} 14... cxd5 {[%clk 0:02:47.1]} 15.
Ne2 {[%clk 0:02:21.6]} 15... Nd7 {[%clk 0:02:42.8]} 16. Nc3 {[%clk 0:02:09.4]}
16... Nb6 {[%clk 0:02:42.5]} 17. Bh6 {[%clk 0:02:06.2]} 17... Rae8 {[%clk
0:02:37.5]} 18. Bxg7 {[%clk 0:02:00.9]} 18... Kxg7 {[%clk 0:02:38.4]} 19. b3
{[%clk 0:01:58.6]} 19... Rc8 {[%clk 0:02:36.6]} 20. Kb2 {[%clk 0:01:47.6]} 20...
f5 {[%clk 0:02:35.1]} 21. Rd2 {[%clk 0:01:39.3]} 21... a6 {[%clk 0:02:35.2]} 22.
f4 {[%clk 0:01:30.3]} 22... Re3 {[%clk 0:02:32.4]} 23. Rd3 {[%clk 0:01:28.6]}
23... Rxd3 {[%clk 0:02:31.5]} 24. cxd3 {[%clk 0:01:29.5]} 24... Re8 {[%clk
0:02:30.7]} 25. Kc2 {[%clk 0:01:27.5]} 25... Re3 {[%clk 0:02:24.5]} 26. Kd2
{[%clk 0:01:27.6]} 26... Rg3 {[%clk 0:02:24.1]} 27. Rh2 {[%clk 0:01:25.6]} 27...
Rg4 {[%clk 0:02:23.9]} 28. Ne2 {[%clk 0:01:25.1]} 28... Nd7 {[%clk 0:02:15.1]}
29. g3 {[%clk 0:01:24.4]} 29... Nf8 {[%clk 0:02:15.6]} 30. Ke3 {[%clk 0:01:23]}
30... Ne6 {[%clk 0:02:16]} 31. Kf3 {[%clk 0:01:22.8]} 31... g5 {[%clk 0:02:16]}
32. Rg2 {[%clk 0:01:10.6]} 32... Kf6 {[%clk 0:02:09.4]} 33. Rh2 {[%clk
0:01:05.4]} 33... gxf4 {[%clk 0:01:57.7]} 34. gxf4 {[%clk 0:01:06.3]} 34... Rg8
{[%clk 0:01:56.5]} 35. Rh6+ {[%clk 0:01:03.8]} 35... Kg7 {[%clk 0:01:54.6]} 36.
Rh5 {[%clk 0:01:04]} 36... Kg6 {[%clk 0:01:54.7]} 37. Rh1 {[%clk 0:00:59.3]}
37... Rc8 {[%clk 0:01:53.7]} 38. Rc1 {[%clk 0:00:40.9]} 38... Nxd4+ {[%clk
0:01:47.4]} 39. Ke3 {[%clk 0:00:41.2]} 39... Rxc1 {[%clk 0:01:45.1]} 40. Nxc1
{[%clk 0:00:42.1]} 40... Ne6 {[%clk 0:01:36.1]} 41. Ne2 {[%clk 0:00:42.2]} 41...
Kh5 {[%clk 0:01:34.9]} 42. Kf3 {[%clk 0:00:24.8]} 42... Kh4 {[%clk 0:01:32.2]}
43. d4 {[%clk 0:00:21.4]} 43... Kh3 {[%clk 0:01:30.3]} 44. a4 {[%clk 0:00:17]}
44... a5 {[%clk 0:01:30]} 45. Ke3 {[%clk 0:00:13.8]} 45... Kg4 {[%clk 0:01:30]}
46. Nc3 {[%clk 0:00:07.5]} 46... Nxf4 {[%clk 0:01:29.7]} 47. Nb5 {[%clk
0:00:04.9]} 47... Ne6 {[%clk 0:01:28.1]} 48. Nd6 {[%clk 0:00:05.4]} 48... f4+
{[%clk 0:01:28.1]} 49. Kf2 {[%clk 0:00:06]} 49... Nxd4 {[%clk 0:01:27.4]} 50.
Nxb7 {[%clk 0:00:06]} 50... Nxb3 {[%clk 0:01:27.5]} 51. Nd6 {[%clk 0:00:06.4]}
51... f6 {[%clk 0:01:25]} 52. Ke2 {[%clk 0:00:06.4]} 52... Kg3 {[%clk
0:01:24.3]} 53. Kf1 {[%clk 0:00:06.4]} 53... f3 {[%clk 0:01:24.3]} 54. Nf5+
{[%clk 0:00:06.9]} 54... Kf4 {[%clk 0:01:24.7]} 55. Nd6 {[%clk 0:00:07]} 55...
d4 {[%clk 0:01:24.9]} 56. Nc4 {[%clk 0:00:07]} 56... d3 {[%clk 0:01:25.1]} 57.
Kf2 {[%clk 0:00:07.4]} 57... d2 {[%clk 0:01:24.1]} 58. Nb2 {[%clk 0:00:08.3]}
58... Ke4 {[%clk 0:01:23.2]} 59. Nd1 {[%clk 0:00:08]} 59... Nc5 {[%clk
0:01:21.1]} 60. Nc3+ {[%clk 0:00:07.3]} 60... Kd3 {[%clk 0:01:21.7]} 61. Nd1
{[%clk 0:00:07.8]} 61... Kc2 {[%clk 0:01:21.9]} 62. Ne3+ {[%clk 0:00:08.3]}
62... Kc1 {[%clk 0:01:22.4]} 63. Kxf3 {[%clk 0:00:09.2]} 63... d1=Q+ {[%clk
0:01:18.7]} 64. Nxd1 {[%clk 0:00:10.1]} 64... Kxd1 {[%clk 0:01:19.5]} 65. Kf4
{[%clk 0:00:10.8]} 65... Nxa4 {[%clk 0:01:16.7]} 66. Kf5 {[%clk 0:00:11.7]}
66... Nc3 {[%clk 0:01:16.9]} 0-1

[Event "Early-Titled-Tuesday-Blitz-March-26-2024"]
[Site "Chess.com"]
[Date "2024.03.26"]
[Round "4"]
[White "ilya2700"]
[Black "YegoryoCh"]
[Result "0-1"]
[WhiteElo "2333"]
[BlackElo "2501"]
[TimeControl "180+1"]
[EndTime "8:38:01 PDT"]
[Termination "YegoryoCh won on time"]

1. d4 {[%clk 0:03:00.6]} 1... d5 {[%clk 0:02:58]} 2. c4 {[%clk 0:03:01]} 2... e6
{[%clk 0:02:57.6]} 3. Nc3 {[%clk 0:03:00.9]} 3... c6 {[%clk 0:02:57.9]} 4. e3
{[%clk 0:02:59]} 4... Nf6 {[%clk 0:02:57.5]} 5. Nf3 {[%clk 0:02:59.4]} 5... Nbd7
{[%clk 0:02:57.8]} 6. Bd3 {[%clk 0:02:59.9]} 6... dxc4 {[%clk 0:02:58]} 7. Bxc4
{[%clk 0:03:00]} 7... b5 {[%clk 0:02:58.4]} 8. Bd3 {[%clk 0:03:00.1]} 8... a6
{[%clk 0:02:58.6]} 9. a4 {[%clk 0:02:55.9]} 9... b4 {[%clk 0:02:53.5]} 10. Ne4
{[%clk 0:02:54.6]} 10... Bb7 {[%clk 0:02:51.3]} 11. Qc2 {[%clk 0:02:27.2]} 11...
c5 {[%clk 0:02:48]} 12. O-O {[%clk 0:01:52.4]} 12... Rc8 {[%clk 0:02:47]} 13.
dxc5 {[%clk 0:01:49.7]} 13... Nxc5 {[%clk 0:02:43]} 14. Nxc5 {[%clk 0:01:49]}
14... Bxc5 {[%clk 0:02:41.7]} 15. Qe2 {[%clk 0:01:49]} 15... O-O {[%clk
0:02:40.5]} 16. Bxa6 {[%clk 0:01:44.7]} 16... Bxa6 {[%clk 0:02:33.6]} 17. Qxa6
{[%clk 0:01:45.6]} 17... Ne4 {[%clk 0:02:29.1]} 18. Qc4 {[%clk 0:01:34.4]} 18...
Nxf2 {[%clk 0:02:14.4]} 19. Rxf2 {[%clk 0:01:28.9]} 19... Bxe3 {[%clk
0:02:14.5]} 20. Qf1 {[%clk 0:01:14.3]} 20... Ba7 {[%clk 0:02:13.2]} 21. Kh1
{[%clk 0:00:27.2]} 21... Bxf2 {[%clk 0:02:05.2]} 22. Qxf2 {[%clk 0:00:28.1]}
22... Qd1+ {[%clk 0:02:05.5]} 23. Qg1 {[%clk 0:00:25.7]} 23... Qb3 {[%clk
0:02:05]} 24. a5 {[%clk 0:00:21.6]} 24... Rfd8 {[%clk 0:02:04]} 25. Be3 {[%clk
0:00:15]} 25... Qxb2 {[%clk 0:01:55.9]} 26. a6 {[%clk 0:00:14.4]} 26... b3
{[%clk 0:01:54]} 27. a7 {[%clk 0:00:13.9]} 27... Qc3 {[%clk 0:01:49.4]} 28. Bb6
{[%clk 0:00:09.3]} 28... b2 {[%clk 0:01:48]} 29. Rb1 {[%clk 0:00:07.8]} 29...
Re8 {[%clk 0:01:30.4]} 30. Bd4 {[%clk 0:00:08.1]} 30... Qa3 {[%clk 0:01:08.7]}
31. Rxb2 {[%clk 0:00:08.1]} 31... e5 {[%clk 0:01:09.2]} 32. Bxe5 {[%clk
0:00:04.2]} 32... Rxe5 {[%clk 0:01:08.2]} 33. Rb8 {[%clk 0:00:03.6]} 33... Ree8
{[%clk 0:00:54.6]} 34. Rxc8 {[%clk 0:00:03]} 34... Rxc8 {[%clk 0:00:54.2]} 35.
Qb6 {[%clk 0:00:02.5]} 35... Ra8 {[%clk 0:00:46.7]} 36. h3 {[%clk 0:00:01.7]}
36... Qxa7 {[%clk 0:00:46.2]} 37. Qb3 {[%clk 0:00:01.6]} 37... Qe7 {[%clk
0:00:44.2]} 38. Kh2 {[%clk 0:00:01.8]} 38... Re8 {[%clk 0:00:44.1]} 39. Qd3
{[%clk 0:00:01.5]} 39... Qc7+ {[%clk 0:00:44.2]} 0-1

[Event "Early-Titled-Tuesday-Blitz-March-26-2024"]
[Site "Chess.com"]
[Date "2024.03.26"]
[Round "4"]
[White "Susal_De_Silva"]
[Black "hakanazeri2"]
[Result "0-1"]
[WhiteElo "2748"]
[BlackElo "2572"]
[TimeControl "180+1"]
[EndTime "8:38:04 PDT"]
[Termination "hakanazeri2 won by resignation"]

1. Nf3 {[%clk 0:03:00.9]} 1... d5 {[%clk 0:02:58.6]} 2. e3 {[%clk 0:03:01]} 2...
Nf6 {[%clk 0:02:58.6]} 3. c4 {[%clk 0:03:01.4]} 3... e6 {[%clk 0:02:57.2]} 4. b3
{[%clk 0:03:01.8]} 4... Bd6 {[%clk 0:02:57.2]} 5. Bb2 {[%clk 0:03:01.5]} 5... c6
{[%clk 0:02:58]} 6. Nc3 {[%clk 0:03:01]} 6... Nbd7 {[%clk 0:02:56.8]} 7. Qc2
{[%clk 0:03:00.5]} 7... Qc7 {[%clk 0:02:53.5]} 8. Be2 {[%clk 0:02:59.8]} 8... a6
{[%clk 0:02:53.1]} 9. d4 {[%clk 0:02:59.4]} 9... b5 {[%clk 0:02:52.5]} 10. O-O
{[%clk 0:02:58.5]} 10... O-O {[%clk 0:02:52.1]} 11. c5 {[%clk 0:02:54.1]} 11...
Be7 {[%clk 0:02:52]} 12. b4 {[%clk 0:02:53.9]} 12... a5 {[%clk 0:02:46.5]} 13.
a3 {[%clk 0:02:51.5]} 13... Re8 {[%clk 0:02:39.2]} 14. e4 {[%clk 0:02:49.8]}
14... dxe4 {[%clk 0:02:38.2]} 15. Nxe4 {[%clk 0:02:50.7]} 15... Nxe4 {[%clk
0:02:39.1]} 16. Qxe4 {[%clk 0:02:51.6]} 16... Nf6 {[%clk 0:02:39.9]} 17. Qc2
{[%clk 0:02:36]} 17... Nd5 {[%clk 0:02:39.3]} 18. bxa5 {[%clk 0:02:28.8]} 18...
Rxa5 {[%clk 0:02:36.4]} 19. Ne5 {[%clk 0:02:29.4]} 19... Bf6 {[%clk 0:02:30.8]}
20. Rfd1 {[%clk 0:02:21.1]} 20... Ba6 {[%clk 0:02:16.1]} 21. Rd3 {[%clk
0:02:19.7]} 21... Bxe5 {[%clk 0:02:04.2]} 22. dxe5 {[%clk 0:02:20.6]} 22... b4
{[%clk 0:02:04]} 23. Rh3 {[%clk 0:02:18.7]} 23... Bxe2 {[%clk 0:01:59.3]} 24.
Qxe2 {[%clk 0:02:08.7]} 24... Nf4 {[%clk 0:01:51]} 25. Qg4 {[%clk 0:02:02.1]}
25... Nxh3+ {[%clk 0:01:49.8]} 26. Qxh3 {[%clk 0:02:03]} 26... bxa3 {[%clk
0:01:46.5]} 27. Rxa3 {[%clk 0:02:03.1]} 27... Rxa3 {[%clk 0:01:40.4]} 28. Qxa3
{[%clk 0:02:04]} 28... Qd7 {[%clk 0:01:32.4]} 29. h3 {[%clk 0:02:04]} 29... h6
{[%clk 0:01:30.5]} 30. Kh2 {[%clk 0:01:57.8]} 30... Qd2 {[%clk 0:01:30.1]} 31.
f3 {[%clk 0:01:50.6]} 31... Rb8 {[%clk 0:01:25.9]} 32. Bc1 {[%clk 0:01:50.2]}
32... Qd4 {[%clk 0:01:17.2]} 33. Qe3 {[%clk 0:01:45.1]} 33... Qxe3 {[%clk
0:01:03.9]} 34. Bxe3 {[%clk 0:01:46]} 34... Rb3 {[%clk 0:00:55.9]} 35. Bf2
{[%clk 0:01:42.3]} 35... Rb2 {[%clk 0:00:53]} 36. Kg3 {[%clk 0:01:41.1]} 36...
Re2 {[%clk 0:00:45.1]} 37. f4 {[%clk 0:01:40]} 37... f6 {[%clk 0:00:43.6]} 38.
Kf3 {[%clk 0:01:39.8]} 38... Rc2 {[%clk 0:00:41.2]} 39. exf6 {[%clk 0:01:37]}
39... gxf6 {[%clk 0:00:42.1]} 40. g4 {[%clk 0:01:37.4]} 40... Kf7 {[%clk
0:00:42.2]} 41. Be3 {[%clk 0:01:37.3]} 41... Rc4 {[%clk 0:00:39.6]} 42. h4
{[%clk 0:01:36.5]} 42... f5 {[%clk 0:00:38.8]} 43. g5 {[%clk 0:01:17.8]} 43...
hxg5 {[%clk 0:00:38.6]} 44. hxg5 {[%clk 0:01:18.7]} 44... Kg6 {[%clk 0:00:38.9]}
45. Ke2 {[%clk 0:01:13.3]} 45... e5 {[%clk 0:00:26.1]} 46. fxe5 {[%clk 0:01:12]}
46... f4 {[%clk 0:00:25.8]} 47. Bf2 {[%clk 0:01:05.2]} 47... Re4+ {[%clk
0:00:23.3]} 48. Kf3 {[%clk 0:01:04.1]} 48... Rxe5 {[%clk 0:00:12.6]} 49. Kxf4
{[%clk 0:01:04.2]} 49... Rf5+ {[%clk 0:00:13.2]} 50. Ke3 {[%clk 0:01:00.6]}
50... Rxc5 {[%clk 0:00:12.9]} 0-1

[Event "Early-Titled-Tuesday-Blitz-March-26-2024"]
[Site "Chess.com"]
[Date "2024.03.26"]
[Round "4"]
[White "GaiozNigalidze"]
[Black "theoneandonlydaaevik"]
[Result "1-0"]
[WhiteElo "2730"]
[BlackElo "2541"]
[TimeControl "180+1"]
[EndTime "8:38:04 PDT"]
[Termination "GaiozNigalidze won on time"]

1. d4 {[%clk 0:03:00.9]} 1... Nf6 {[%clk 0:02:59.6]} 2. c4 {[%clk 0:03:01.2]}
2... e6 {[%clk 0:02:57.1]} 3. Nf3 {[%clk 0:02:59.9]} 3... d5 {[%clk 0:02:56.7]}
4. cxd5 {[%clk 0:02:58.3]} 4... exd5 {[%clk 0:02:56.4]} 5. Nc3 {[%clk
0:02:58.8]} 5... Be7 {[%clk 0:02:55.3]} 6. Bg5 {[%clk 0:02:59.4]} 6... O-O
{[%clk 0:02:54.4]} 7. Qc2 {[%clk 0:02:59.7]} 7... c6 {[%clk 0:02:54.5]} 8. e3
{[%clk 0:03:00.4]} 8... Re8 {[%clk 0:02:54.8]} 9. Bd3 {[%clk 0:03:01]} 9... h6
{[%clk 0:02:51.7]} 10. Bh4 {[%clk 0:03:00.3]} 10... Ne4 {[%clk 0:02:44.4]} 11.
Bxe7 {[%clk 0:02:59.5]} 11... Qxe7 {[%clk 0:02:43.9]} 12. Bxe4 {[%clk
0:02:59.7]} 12... dxe4 {[%clk 0:02:44.4]} 13. Nd2 {[%clk 0:03:00]} 13... Bf5
{[%clk 0:02:42.2]} 14. O-O {[%clk 0:02:59.3]} 14... Qe6 {[%clk 0:02:28.7]} 15.
Qb3 {[%clk 0:02:34.9]} 15... Nd7 {[%clk 0:02:04.5]} 16. Qxb7 {[%clk 0:02:13.4]}
16... Reb8 {[%clk 0:01:39.1]} 17. Qc7 {[%clk 0:02:00.6]} 17... Rxb2 {[%clk
0:01:38]} 18. Nb3 {[%clk 0:02:00.8]} 18... h5 {[%clk 0:01:35.8]} 19. Na5 {[%clk
0:01:42]} 19... Rb6 {[%clk 0:01:14.6]} 20. Na4 {[%clk 0:01:27.6]} 20... Rb4
{[%clk 0:01:04.7]} 21. Nc3 {[%clk 0:01:11.3]} 21... Rb6 {[%clk 0:01:03.9]} 22.
Rab1 {[%clk 0:01:08.3]} 22... Rab8 {[%clk 0:00:51.7]} 23. Rxb6 {[%clk
0:00:58.5]} 23... Rxb6 {[%clk 0:00:52.6]} 24. Qxa7 {[%clk 0:00:56.6]} 24... h4
{[%clk 0:00:50.2]} 25. Qa8+ {[%clk 0:00:50]} 25... Kh7 {[%clk 0:00:48.4]} 26.
Qd8 {[%clk 0:00:50.7]} 26... f6 {[%clk 0:00:39.7]} 27. Qc7 {[%clk 0:00:40.9]}
27... h3 {[%clk 0:00:28.6]} 28. g3 {[%clk 0:00:30.4]} 28... g5 {[%clk 0:00:15]}
29. Nb3 {[%clk 0:00:27.1]} 29... Rxb3 {[%clk 0:00:02.3]} 30. axb3 {[%clk
0:00:25.6]} 30... Kg6 {[%clk 0:00:02.8]} 31. d5 {[%clk 0:00:15.9]} 31... cxd5
{[%clk 0:00:02.8]} 32. Nb5 {[%clk 0:00:16.6]} 32... d4 {[%clk 0:00:01.3]} 33.
Nxd4 {[%clk 0:00:16.1]} 1-0

[Event "Early-Titled-Tuesday-Blitz-March-26-2024"]
[Site "Chess.com"]
[Date "2024.03.26"]
[Round "4"]
[White "Taran2004"]
[Black "CrushingKings"]
[Result "0-1"]
[WhiteElo "2399"]
[BlackElo "2573"]
[TimeControl "180+1"]
[EndTime "8:38:04 PDT"]
[Termination "CrushingKings won by resignation"]

1. e4 {[%clk 0:02:57.9]} 1... g6 {[%clk 0:02:58.9]} 2. d4 {[%clk 0:02:58]} 2...
Bg7 {[%clk 0:02:55.6]} 3. Nc3 {[%clk 0:02:58.3]} 3... c6 {[%clk 0:02:56]} 4. Be3
{[%clk 0:02:58]} 4... d5 {[%clk 0:02:56.1]} 5. e5 {[%clk 0:02:56.5]} 5... f6
{[%clk 0:02:56.5]} 6. Nf3 {[%clk 0:02:55.6]} 6... Bg4 {[%clk 0:02:48.7]} 7. exf6
{[%clk 0:02:52.1]} 7... Nxf6 {[%clk 0:02:48.3]} 8. Be2 {[%clk 0:02:52.3]} 8...
Bxf3 {[%clk 0:02:47.8]} 9. Bxf3 {[%clk 0:02:53.2]} 9... O-O {[%clk 0:02:47.6]}
10. Qd2 {[%clk 0:02:53.4]} 10... Nbd7 {[%clk 0:02:46.8]} 11. O-O-O {[%clk
0:02:51.9]} 11... e5 {[%clk 0:02:46.9]} 12. h4 {[%clk 0:02:48.3]} 12... h5
{[%clk 0:02:13]} 13. Bh6 {[%clk 0:02:42.6]} 13... exd4 {[%clk 0:01:59.4]} 14.
Bxg7 {[%clk 0:02:41.5]} 14... Kxg7 {[%clk 0:02:00.1]} 15. Qxd4 {[%clk
0:02:40.9]} 15... Qb6 {[%clk 0:01:59.7]} 16. Qd2 {[%clk 0:02:36.1]} 16... Ne5
{[%clk 0:01:52.6]} 17. Rhe1 {[%clk 0:02:26.6]} 17... Rae8 {[%clk 0:01:49.6]} 18.
Na4 {[%clk 0:02:16.2]} 18... Qb5 {[%clk 0:01:45.6]} 19. Nc3 {[%clk 0:02:15.3]}
19... Qb6 {[%clk 0:01:40.7]} 20. Na4 {[%clk 0:02:15.3]} 20... Qa6 {[%clk
0:01:41.2]} 21. Nc3 {[%clk 0:02:11.7]} 21... Nc4 {[%clk 0:01:16.6]} 22. Qg5
{[%clk 0:02:00.9]} 22... Qa5 {[%clk 0:00:52]} 23. a3 {[%clk 0:01:57.9]} 23...
Nxa3 {[%clk 0:00:49.4]} 24. Nxd5 {[%clk 0:01:52.7]} 24... cxd5 {[%clk
0:00:46.2]} 25. Rxe8 {[%clk 0:01:50.6]} 25... Rxe8 {[%clk 0:00:45.1]} 26. bxa3
{[%clk 0:01:45.6]} 26... Qxa3+ {[%clk 0:00:44.2]} 27. Kd2 {[%clk 0:01:46.3]}
27... Qb4+ {[%clk 0:00:42]} 28. Kc1 {[%clk 0:01:45.8]} 28... Qa3+ {[%clk
0:00:41.1]} 29. Kd2 {[%clk 0:01:45.7]} 29... Re4 {[%clk 0:00:35]} 30. c3 {[%clk
0:01:39.6]} 30... Qb2+ {[%clk 0:00:30.4]} 31. Kd3 {[%clk 0:01:39.9]} 31... Qxf2
{[%clk 0:00:28.3]} 32. Rd2 {[%clk 0:01:29.4]} 32... Qxh4 {[%clk 0:00:18.6]} 33.
Qxh4 {[%clk 0:01:25.9]} 33... Rxh4 {[%clk 0:00:19.5]} 34. Rb2 {[%clk 0:01:26.2]}
34... b6 {[%clk 0:00:18.4]} 35. Ra2 {[%clk 0:01:26.9]} 35... a5 {[%clk
0:00:17.9]} 36. Rb2 {[%clk 0:01:27.6]} 36... Nd7 {[%clk 0:00:17]} 37. Bxd5
{[%clk 0:01:26.9]} 37... Nc5+ {[%clk 0:00:12.3]} 38. Ke3 {[%clk 0:01:26.5]}
38... Na4 {[%clk 0:00:12.1]} 39. Rb3 {[%clk 0:01:23.1]} 39... Kf6 {[%clk
0:00:11.6]} 40. Bc6 {[%clk 0:01:23.4]} 40... Kg5 {[%clk 0:00:09.4]} 41. Bxa4
{[%clk 0:01:22]} 41... Rxa4 {[%clk 0:00:10.3]} 42. Rxb6 {[%clk 0:01:22.4]} 42...
Ra2 {[%clk 0:00:10.8]} 43. g3 {[%clk 0:01:21.6]} 43... Kf5 {[%clk 0:00:10.3]}
44. c4 {[%clk 0:01:20.8]} 44... Rc2 {[%clk 0:00:10.2]} 45. Kd4 {[%clk
0:01:20.1]} 45... g5 {[%clk 0:00:09.8]} 46. Rb5+ {[%clk 0:01:20.2]} 46... Kg4
{[%clk 0:00:09.3]} 47. Rxa5 {[%clk 0:01:20.2]} 47... Rd2+ {[%clk 0:00:08.8]} 48.
Ke3 {[%clk 0:01:18.4]} 48... Rc2 {[%clk 0:00:08.1]} 49. Kd3 {[%clk 0:01:18.9]}
49... Rc1 {[%clk 0:00:08.1]} 50. c5 {[%clk 0:01:19.3]} 50... Kxg3 {[%clk
0:00:07.8]} 51. c6 {[%clk 0:01:18.9]} 51... Kg4 {[%clk 0:00:06.8]} 52. Ra6
{[%clk 0:01:18.3]} 52... h4 {[%clk 0:00:07]} 53. Kd4 {[%clk 0:01:18.8]} 53... h3
{[%clk 0:00:07.4]} 54. Kd5 {[%clk 0:01:15.8]} 54... h2 {[%clk 0:00:07.3]} 55.
Ra4+ {[%clk 0:01:15.6]} 55... Kg3 {[%clk 0:00:05.7]} 56. Ra3+ {[%clk 0:01:15.7]}
56... Kg2 {[%clk 0:00:05.7]} 57. Ra2+ {[%clk 0:01:15.9]} 57... Kg1 {[%clk
0:00:06]} 58. Rxh2 {[%clk 0:01:16.8]} 58... Kxh2 {[%clk 0:00:06.1]} 59. Kd6
{[%clk 0:01:17.7]} 59... g4 {[%clk 0:00:06.6]} 60. c7 {[%clk 0:01:18.6]} 60...
g3 {[%clk 0:00:07.3]} 61. Kd7 {[%clk 0:01:19.4]} 61... g2 {[%clk 0:00:07]} 62.
c8=Q {[%clk 0:01:20.3]} 62... Rxc8 {[%clk 0:00:06.4]} 63. Kxc8 {[%clk
0:01:21.2]} 63... g1=Q {[%clk 0:00:06.8]} 64. Kd7 {[%clk 0:01:22.1]} 64... Qg6
{[%clk 0:00:06.9]} 65. Kc7 {[%clk 0:01:23]} 65... Qf6 {[%clk 0:00:07.2]} 66. Kb7
{[%clk 0:01:23.9]} 66... Qe6 {[%clk 0:00:07.8]} 67. Ka7 {[%clk 0:01:24.8]} 67...
Qd6 {[%clk 0:00:08.3]} 68. Kb7 {[%clk 0:01:25.1]} 68... Qc5 {[%clk 0:00:08.2]}
69. Kb8 {[%clk 0:01:25.4]} 69... Qc6 {[%clk 0:00:07.6]} 70. Ka7 {[%clk
0:01:26.3]} 70... Qb5 {[%clk 0:00:07.6]} 71. Ka8 {[%clk 0:01:27.2]} 71... Kg3
{[%clk 0:00:08.1]} 72. Ka7 {[%clk 0:01:28]} 72... Kf4 {[%clk 0:00:09]} 73. Ka8
{[%clk 0:01:28.6]} 73... Ke5 {[%clk 0:00:09.9]} 74. Ka7 {[%clk 0:01:29.5]} 74...
Kd6 {[%clk 0:00:10.8]} 0-1